[Event "Titled Tuesday Blitz January 18 2022"]
[White "Claridge-Hansen, William"]
[Black "Guz, Ari"]
[WhiteFideId "422509"]
[BlackFideId "2825759"]
[WhiteElo "2261"]
[BlackElo "1913"]
[Result "1-0"]
[Round "05"]
[TimeControl "180+1"]
[Date "2022.01.18"]
[WhiteClock "0:00:03"]
[BlackClock "0:00:20"]

1. c4 {[%clk 0:03:00]}  e6 {[%clk 0:02:58]} 2. g3 {[%clk 0:02:58]}  Nf6 {[%clk 0:02:58]} 3. Bg2 {[%clk 0:02:59]}  Be7 {[%clk 0:02:59]} 4. Nf3 {[%clk 0:02:59]}  O-O {[%clk 0:02:59]} 5. O-O {[%clk 0:03:00]}  d5 {[%clk 0:03:00]} 6. b3 {[%clk 0:03:00]}  dxc4 {[%clk 0:02:59]} 7. bxc4 {[%clk 0:03:00]}  c5 {[%clk 0:02:59]} 8. Nc3 {[%clk 0:03:00]}  Nc6 {[%clk 0:03:00]} 9. Rb1 {[%clk 0:02:56]}  Rb8 {[%clk 0:02:59]} 10. d3 {[%clk 0:02:55]}  b6 {[%clk 0:02:59]} 11. a3 {[%clk 0:02:53]}  Bb7 {[%clk 0:02:59]} 12. Bb2 {[%clk 0:02:51]}  h6 {[%clk 0:02:52]} 13. Ba1 {[%clk 0:02:38]}  Qd7 {[%clk 0:02:51]} 14. Qc2 {[%clk 0:02:36]}  Ba8 {[%clk 0:02:44]} 15. e3 {[%clk 0:02:31]}  Rbc8 {[%clk 0:02:41]} 16. Qe2 {[%clk 0:02:24]}  Rfd8 {[%clk 0:02:41]} 17. Ne1 {[%clk 0:02:22]}  Bd6 {[%clk 0:02:31]} 18. f4 {[%clk 0:02:16]}  Ne7 {[%clk 0:02:24]} 19. Ne4 {[%clk 0:01:58]}  Nxe4 {[%clk 0:02:19]} 20. dxe4 {[%clk 0:01:58]}  Ng6 {[%clk 0:02:13]} 21. Rd1 {[%clk 0:01:48]}  Qc7 {[%clk 0:02:09]} 22. e5 {[%clk 0:01:43]}  Bf8 {[%clk 0:02:09]} 23. Bxa8 {[%clk 0:01:34]}  Rxa8 {[%clk 0:02:09]} 24. Nf3 {[%clk 0:01:29]}  Ne7 {[%clk 0:02:07]} 25. e4 {[%clk 0:01:29]}  Qb7 {[%clk 0:02:05]} 26. g4 {[%clk 0:01:19]}  Nc6 {[%clk 0:02:01]} 27. f5 {[%clk 0:01:16]}  Rxd1 {[%clk 0:01:58]} 28. Rxd1 {[%clk 0:01:16]}  Rd8 {[%clk 0:01:59]} 29. Rxd8 {[%clk 0:01:15]}  Nxd8 {[%clk 0:02:00]} 30. Qd3 {[%clk 0:01:12]}  Nc6 {[%clk 0:01:59]} 31. g5 {[%clk 0:01:07]}  exf5 {[%clk 0:01:25]} 32. exf5 {[%clk 0:01:01]}  hxg5 {[%clk 0:01:25]} 33. Nxg5 {[%clk 0:00:58]}  Nxe5 {[%clk 0:00:50]} 34. Bxe5 {[%clk 0:00:52]}  f6 {[%clk 0:00:50]} 35. Bxf6 {[%clk 0:00:40]}  gxf6 {[%clk 0:00:50]} 36. Ne6 {[%clk 0:00:40]}  Bg7 {[%clk 0:00:46]} 37. Qg3 {[%clk 0:00:34]}  Qf7 {[%clk 0:00:45]} 38. Qg4 {[%clk 0:00:26]}  Kh8 {[%clk 0:00:41]} 39. h4 {[%clk 0:00:20]}  Bh6 {[%clk 0:00:38]} 40. h5 {[%clk 0:00:17]}  Qd7 {[%clk 0:00:23]} 41. Qf3 {[%clk 0:00:06]}  Kh7 {[%clk 0:00:20]} 42. Qe2 {[%clk 0:00:01]}  Qd6 {[%clk 0:00:18]} 43. Qg2 {[%clk 0:00:01]}  Qd1+ {[%clk 0:00:18]} 44. Kf2 {[%clk 0:00:02]}  Qxh5 {[%clk 0:00:18]} 45. Qb7+ {[%clk 0:00:01]}  Kg8 {[%clk 0:00:18]} 46. Qc8+ {[%clk 0:00:02]}  Kh7 {[%clk 0:00:18]} 47. Qd7+ {[%clk 0:00:02]}  Kh8 {[%clk 0:00:19]} 48. Qd8+ {[%clk 0:00:02]}  Kh7 {[%clk 0:00:19]} 49. Qxf6 {[%clk 0:00:03]}  Kg8 {[%clk 0:00:19]} 50. Qd8+ {[%clk 0:00:03]}  Kh7 {[%clk 0:00:19]} 51. Qd7+ {[%clk 0:00:03]}  Kg8 {[%clk 0:00:19]} 52. Qd8+ {[%clk 0:00:03]}  Kf7 {[%clk 0:00:17]} 53. Qd7+ {[%clk 0:00:03]}  Kf6 {[%clk 0:00:18]} 54. Qd8+ {[%clk 0:00:04]}  Kxf5 {[%clk 0:00:18]} 55. Nc7 {[%clk 0:00:02]}  Qh2+ {[%clk 0:00:18]} 56. Ke1 {[%clk 0:00:02]}  Qe5+ {[%clk 0:00:18]} 57. Kd1 {[%clk 0:00:02]}  Qf4 {[%clk 0:00:17]} 58. Qd7+ {[%clk 0:00:01]}  Kg5 {[%clk 0:00:17]} 59. Qd5+ {[%clk 0:00:01]}  Kg4 {[%clk 0:00:18]} 60. Ne6 {[%clk 0:00:02]}  Qc1+ {[%clk 0:00:18]} 61. Ke2 {[%clk 0:00:02]}  Qc2+ {[%clk 0:00:18]} 62. Ke1 {[%clk 0:00:02]}  Qc1+ {[%clk 0:00:19]} 63. Ke2 {[%clk 0:00:02]}  Qc2+ {[%clk 0:00:19]} 64. Kf1 {[%clk 0:00:03]}  Bg5 {[%clk 0:00:20]} 65. Qxg5+ {[%clk 0:00:02]}  Kf3 {[%clk 0:00:20]} 66. Qf4# {[%clk 0:00:03]} 1-0


[Site "https://www.chess.com"]

[Event "Titled Tuesday Blitz January 18 2022"]
[White "Concio, Michael Jr."]
[Black "Przybylski, Wojciech"]
[WhiteFideId "5217873"]
[BlackFideId "1117599"]
[WhiteElo "1896"]
[BlackElo "2133"]
[Result "0-1"]
[Round "05"]
[TimeControl "180+1"]
[Date "2022.01.18"]
[WhiteClock "0:00:02"]
[BlackClock "0:00:06"]

1. e4 {[%clk 0:03:00]}  e5 {[%clk 0:02:54]} 2. Nf3 {[%clk 0:03:00]}  Nc6 {[%clk 0:02:53]} 3. Nc3 {[%clk 0:03:00]}  Nf6 {[%clk 0:02:53]} 4. Be2 {[%clk 0:02:59]}  Be7 {[%clk 0:02:53]} 5. O-O {[%clk 0:02:56]}  O-O {[%clk 0:02:52]} 6. d4 {[%clk 0:02:56]}  d6 {[%clk 0:02:41]} 7. h3 {[%clk 0:02:46]}  a6 {[%clk 0:02:28]} 8. Be3 {[%clk 0:02:46]}  Re8 {[%clk 0:02:27]} 9. Qd2 {[%clk 0:02:31]}  h6 {[%clk 0:02:22]} 10. Rad1 {[%clk 0:02:30]}  exd4 {[%clk 0:02:21]} 11. Nxd4 {[%clk 0:02:26]}  Nxd4 {[%clk 0:02:19]} 12. Bxd4 {[%clk 0:02:27]}  Bf8 {[%clk 0:02:19]} 13. Bf3 {[%clk 0:02:20]}  Nd7 {[%clk 0:02:14]} 14. Rfe1 {[%clk 0:02:18]}  Ne5 {[%clk 0:02:11]} 15. Be2 {[%clk 0:02:18]}  Be6 {[%clk 0:01:51]} 16. f4 {[%clk 0:02:09]}  Nc4 {[%clk 0:01:43]} 17. Qc1 {[%clk 0:02:07]}  b5 {[%clk 0:01:28]} 18. Bf3 {[%clk 0:01:50]}  Rb8 {[%clk 0:01:26]} 19. b3 {[%clk 0:01:37]}  Nb6 {[%clk 0:01:21]} 20. f5 {[%clk 0:00:46]}  Bd7 {[%clk 0:01:19]} 21. f6 {[%clk 0:00:44]}  g6 {[%clk 0:01:10]} 22. Nd5 {[%clk 0:00:43]}  c5 {[%clk 0:00:46]} 23. Ba1 {[%clk 0:00:40]}  Nxd5 {[%clk 0:00:44]} 24. exd5 {[%clk 0:00:41]}  Qa5 {[%clk 0:00:36]} 25. a3 {[%clk 0:00:27]}  Rxe1+ {[%clk 0:00:32]} 26. Rxe1 {[%clk 0:00:27]}  Re8 {[%clk 0:00:32]} 27. Rxe8 {[%clk 0:00:19]}  Bxe8 {[%clk 0:00:33]} 28. Bb2 {[%clk 0:00:13]}  Bd7 {[%clk 0:00:30]} 29. Qe3 {[%clk 0:00:07]}  Qd8 {[%clk 0:00:28]} 30. Kf2 {[%clk 0:00:04]}  Qc8 {[%clk 0:00:27]} 31. Bc1 {[%clk 0:00:02]}  Bf5 {[%clk 0:00:22]} 32. Be4 {[%clk 0:00:02]}  c4 {[%clk 0:00:19]} 33. b4 {[%clk 0:00:02]}  c3 {[%clk 0:00:17]} 34. g4 {[%clk 0:00:02]}  Bd7 {[%clk 0:00:13]} 35. Bd3 {[%clk 0:00:02]}  Qd8 {[%clk 0:00:11]} 36. Qf3 {[%clk 0:00:02]}  a5 {[%clk 0:00:09]} 37. Be3 {[%clk 0:00:03]}  axb4 {[%clk 0:00:09]} 38. axb4 {[%clk 0:00:04]}  Qe8 {[%clk 0:00:06]} 39. Bd4 {[%clk 0:00:04]}  Qa8 {[%clk 0:00:04]} 40. h4 {[%clk 0:00:04]}  Qa1 {[%clk 0:00:04]} 41. h5 {[%clk 0:00:04]}  Be8 {[%clk 0:00:04]} 42. hxg6 {[%clk 0:00:04]}  fxg6 {[%clk 0:00:04]} 43. Qe4 {[%clk 0:00:03]}  Bf7 {[%clk 0:00:03]} 44. Qe1 {[%clk 0:00:03]}  Qa2 {[%clk 0:00:02]} 45. Qxc3 {[%clk 0:00:03]}  Qxd5 {[%clk 0:00:02]} 46. Qc7 {[%clk 0:00:03]}  Qxd4+ {[%clk 0:00:03]} 47. Ke2 {[%clk 0:00:03]}  Qe5+ {[%clk 0:00:03]} 48. Kd1 {[%clk 0:00:03]}  Qxf6 {[%clk 0:00:03]} 49. Bxb5 {[%clk 0:00:03]}  Qe5 {[%clk 0:00:04]} 50. Bd3 {[%clk 0:00:03]}  Qd5 {[%clk 0:00:04]} 51. b5 {[%clk 0:00:03]}  Qf3+ {[%clk 0:00:04]} 52. Kc1 {[%clk 0:00:02]}  Qf4+ {[%clk 0:00:05]} 53. Kd1 {[%clk 0:00:02]}  Qxg4+ {[%clk 0:00:05]} 54. Kc1 {[%clk 0:00:02]}  Qf4+ {[%clk 0:00:05]} 55. Kb1 {[%clk 0:00:02]}  Qb4+ {[%clk 0:00:05]} 56. Kc1 {[%clk 0:00:03]}  h5 {[%clk 0:00:05]} 57. b6 {[%clk 0:00:03]}  Bh6+ {[%clk 0:00:05]} 58. Kd1 {[%clk 0:00:02]}  Qd2# {[%clk 0:00:06]} 0-1


[Site "https://www.chess.com"]

[Event "Titled Tuesday Blitz January 18 2022"]
[White "Costachi, Mihnea"]
[Black "Evdokimov, Alexander A."]
[WhiteFideId "1217518"]
[BlackFideId "4139275"]
[WhiteElo "2464"]
[BlackElo "2444"]
[Result "1-0"]
[Round "05"]
[TimeControl "180+1"]
[Date "2022.01.18"]
[WhiteClock "0:01:06"]
[BlackClock "0:00:50"]

1. e4 {[%clk 0:03:00]}  d6 {[%clk 0:02:55]} 2. d4 {[%clk 0:02:59]}  Nf6 {[%clk 0:02:55]} 3. Nc3 {[%clk 0:02:55]}  g6 {[%clk 0:02:56]} 4. f3 {[%clk 0:02:53]}  Bg7 {[%clk 0:02:56]} 5. Be3 {[%clk 0:02:54]}  c6 {[%clk 0:02:56]} 6. Qd2 {[%clk 0:02:54]}  b5 {[%clk 0:02:56]} 7. h4 {[%clk 0:02:53]}  Nbd7 {[%clk 0:02:36]} 8. g4 {[%clk 0:02:49]}  Nb6 {[%clk 0:02:29]} 9. h5 {[%clk 0:02:41]}  b4 {[%clk 0:02:28]} 10. Nd1 {[%clk 0:02:42]}  a5 {[%clk 0:02:23]} 11. h6 {[%clk 0:02:38]}  Bf8 {[%clk 0:02:22]} 12. a3 {[%clk 0:02:35]}  bxa3 {[%clk 0:02:09]} 13. Rxa3 {[%clk 0:02:35]}  a4 {[%clk 0:02:08]} 14. Nc3 {[%clk 0:02:33]}  e5 {[%clk 0:02:06]} 15. dxe5 {[%clk 0:02:31]}  Nfd7 {[%clk 0:02:05]} 16. exd6 {[%clk 0:02:22]}  Ba6 {[%clk 0:02:01]} 17. Bxa6 {[%clk 0:02:15]}  Rxa6 {[%clk 0:02:02]} 18. Qd4 {[%clk 0:02:15]}  f6 {[%clk 0:02:02]} 19. f4 {[%clk 0:02:02]}  Qb8 {[%clk 0:01:50]} 20. e5 {[%clk 0:02:01]}  c5 {[%clk 0:01:46]} 21. Qd3 {[%clk 0:01:52]}  fxe5 {[%clk 0:01:44]} 22. Qxa6 {[%clk 0:01:51]}  Bxd6 {[%clk 0:01:36]} 23. Nf3 {[%clk 0:01:27]}  exf4 {[%clk 0:01:35]} 24. Bd2 {[%clk 0:01:25]}  O-O {[%clk 0:01:31]} 25. O-O {[%clk 0:01:25]}  Ne5 {[%clk 0:01:29]} 26. Nxe5 {[%clk 0:01:21]}  Bxe5 {[%clk 0:01:30]} 27. Ne4 {[%clk 0:01:19]}  Bd4+ {[%clk 0:01:20]} 28. Kg2 {[%clk 0:01:19]}  Qe5 {[%clk 0:01:19]} 29. Qe2 {[%clk 0:01:19]}  Nd5 {[%clk 0:01:17]} 30. Raf3 {[%clk 0:01:14]}  Kh8 {[%clk 0:01:06]} 31. c3 {[%clk 0:01:06]}  Be3 {[%clk 0:00:51]} 32. Rxe3 {[%clk 0:01:06]}  Nxe3+ {[%clk 0:00:50]} 33. Qxe3 {[%clk 0:01:06]} 1-0


[Site "https://www.chess.com"]

[Event "Titled Tuesday Blitz January 18 2022"]
[White "Djordjevic, Vuk"]
[Black "Klenburg, Michael"]
[WhiteFideId "902098"]
[BlackFideId "14102072"]
[WhiteElo "2463"]
[BlackElo "2359"]
[Result "1-0"]
[Round "05"]
[TimeControl "180+1"]
[Date "2022.01.18"]
[WhiteClock "0:00:05"]
[BlackClock "0:00:03"]

1. d4 {[%clk 0:03:00]}  d6 {[%clk 0:02:55]} 2. Bg5 {[%clk 0:03:00]}  c6 {[%clk 0:02:54]} 3. Nf3 {[%clk 0:03:00]}  Nd7 {[%clk 0:02:54]} 4. e3 {[%clk 0:03:00]}  Ngf6 {[%clk 0:02:51]} 5. c4 {[%clk 0:03:00]}  e5 {[%clk 0:02:50]} 6. Nc3 {[%clk 0:03:00]}  Be7 {[%clk 0:02:50]} 7. Be2 {[%clk 0:02:59]}  Ng4 {[%clk 0:02:47]} 8. Bxe7 {[%clk 0:02:22]}  Qxe7 {[%clk 0:02:47]} 9. dxe5 {[%clk 0:02:09]}  Ngxe5 {[%clk 0:02:44]} 10. Ne4 {[%clk 0:02:04]}  Nxf3+ {[%clk 0:02:33]} 11. gxf3 {[%clk 0:01:51]}  d5 {[%clk 0:02:26]} 12. cxd5 {[%clk 0:01:51]}  cxd5 {[%clk 0:02:26]} 13. Qxd5 {[%clk 0:01:49]}  O-O {[%clk 0:02:21]} 14. Rg1 {[%clk 0:01:40]}  Qb4+ {[%clk 0:02:12]} 15. Qd2 {[%clk 0:01:38]}  Qxd2+ {[%clk 0:02:10]} 16. Kxd2 {[%clk 0:01:26]}  Nb6 {[%clk 0:02:08]} 17. Rac1 {[%clk 0:01:14]}  Be6 {[%clk 0:02:06]} 18. b3 {[%clk 0:01:13]}  Rfd8+ {[%clk 0:02:03]} 19. Bd3 {[%clk 0:01:13]}  Nd5 {[%clk 0:01:58]} 20. Ke2 {[%clk 0:01:11]}  Rac8 {[%clk 0:01:53]} 21. Rgd1 {[%clk 0:00:57]}  Nb4 {[%clk 0:01:37]} 22. Bb1 {[%clk 0:00:55]}  Rxd1 {[%clk 0:01:32]} 23. Rxd1 {[%clk 0:00:53]}  h6 {[%clk 0:01:26]} 24. Nd6 {[%clk 0:00:48]}  Rb8 {[%clk 0:01:23]} 25. f4 {[%clk 0:00:45]}  g6 {[%clk 0:00:37]} 26. Nb5 {[%clk 0:00:41]}  a5 {[%clk 0:00:28]} 27. Nd4 {[%clk 0:00:39]}  Bd7 {[%clk 0:00:27]} 28. a3 {[%clk 0:00:36]}  Nd5 {[%clk 0:00:26]} 29. Rc1 {[%clk 0:00:36]}  Rc8 {[%clk 0:00:25]} 30. Rxc8+ {[%clk 0:00:33]}  Bxc8 {[%clk 0:00:24]} 31. Kd3 {[%clk 0:00:33]}  b6 {[%clk 0:00:22]} 32. Kc4 {[%clk 0:00:30]}  Nc7 {[%clk 0:00:22]} 33. Be4 {[%clk 0:00:19]}  Ba6+ {[%clk 0:00:20]} 34. Kc3 {[%clk 0:00:19]}  Kf8 {[%clk 0:00:20]} 35. b4 {[%clk 0:00:15]}  axb4+ {[%clk 0:00:20]} 36. axb4 {[%clk 0:00:11]}  Ke7 {[%clk 0:00:17]} 37. Nc6+ {[%clk 0:00:10]}  Kd6 {[%clk 0:00:17]} 38. Ne5 {[%clk 0:00:11]}  Ke7 {[%clk 0:00:15]} 39. Bd3 {[%clk 0:00:05]}  Nd5+ {[%clk 0:00:11]} 40. Kb3 {[%clk 0:00:04]}  Bxd3 {[%clk 0:00:10]} 41. Nxd3 {[%clk 0:00:05]}  Nf6 {[%clk 0:00:10]} 42. Kc4 {[%clk 0:00:04]}  Ne4 {[%clk 0:00:10]} 43. Kb5 {[%clk 0:00:04]}  Kd6 {[%clk 0:00:06]} 44. Kxb6 {[%clk 0:00:04]}  f6 {[%clk 0:00:06]} 45. b5 {[%clk 0:00:05]}  g5 {[%clk 0:00:06]} 46. fxg5 {[%clk 0:00:05]}  hxg5 {[%clk 0:00:06]} 47. Ka7 {[%clk 0:00:05]}  Nc3 {[%clk 0:00:04]} 48. b6 {[%clk 0:00:05]}  Nb5+ {[%clk 0:00:04]} 49. Ka6 {[%clk 0:00:06]}  Kc6 {[%clk 0:00:03]} 50. b7 {[%clk 0:00:06]}  Nc7+ {[%clk 0:00:03]} 51. Ka7 {[%clk 0:00:06]}  Nb5+ {[%clk 0:00:03]} 52. Ka8 {[%clk 0:00:05]} 1-0


[Site "https://www.chess.com"]

[Event "Titled Tuesday Blitz January 18 2022"]
[White "Donchenko, Alexander"]
[Black "Papp, Petra"]
[WhiteFideId "24603295"]
[BlackFideId "739049"]
[WhiteElo "2539"]
[BlackElo "2259"]
[Result "1-0"]
[Round "05"]
[TimeControl "180+1"]
[Date "2022.01.18"]
[WhiteClock "0:02:02"]
[BlackClock "0:00:02"]

1. d4 {[%clk 0:03:00]}  d6 {[%clk 0:02:59]} 2. Nf3 {[%clk 0:03:00]}  f5 {[%clk 0:02:59]} 3. g3 {[%clk 0:03:00]}  Nf6 {[%clk 0:02:59]} 4. Bg2 {[%clk 0:03:01]}  g6 {[%clk 0:02:59]} 5. O-O {[%clk 0:03:01]}  Bg7 {[%clk 0:02:59]} 6. c4 {[%clk 0:03:02]}  O-O {[%clk 0:03:00]} 7. Nc3 {[%clk 0:03:03]}  Nc6 {[%clk 0:02:57]} 8. d5 {[%clk 0:03:02]}  Ne5 {[%clk 0:02:58]} 9. Nxe5 {[%clk 0:03:03]}  dxe5 {[%clk 0:02:59]} 10. Qb3 {[%clk 0:03:03]}  h6 {[%clk 0:02:51]} 11. a4 {[%clk 0:03:03]}  Kh8 {[%clk 0:02:43]} 12. a5 {[%clk 0:03:03]}  a6 {[%clk 0:02:40]} 13. Rd1 {[%clk 0:03:03]}  g5 {[%clk 0:02:34]} 14. c5 {[%clk 0:03:02]}  Qe8 {[%clk 0:02:33]} 15. d6 {[%clk 0:03:01]}  exd6 {[%clk 0:02:12]} 16. cxd6 {[%clk 0:03:01]}  e4 {[%clk 0:02:09]} 17. dxc7 {[%clk 0:03:00]}  Qc6 {[%clk 0:02:00]} 18. Qb6 {[%clk 0:02:57]}  Bd7 {[%clk 0:01:52]} 19. Be3 {[%clk 0:02:52]}  Rac8 {[%clk 0:01:25]} 20. Qxc6 {[%clk 0:02:39]}  Bxc6 {[%clk 0:01:24]} 21. Bb6 {[%clk 0:02:39]}  Ne8 {[%clk 0:01:13]} 22. Nd5 {[%clk 0:02:29]}  Bxd5 {[%clk 0:01:08]} 23. Rxd5 {[%clk 0:02:30]}  Nxc7 {[%clk 0:01:09]} 24. Rd7 {[%clk 0:02:28]}  Nb5 {[%clk 0:00:54]} 25. Rxb7 {[%clk 0:02:28]}  Bxb2 {[%clk 0:00:50]} 26. Rd1 {[%clk 0:02:27]}  Rc1 {[%clk 0:00:42]} 27. Rxc1 {[%clk 0:02:24]}  Bxc1 {[%clk 0:00:43]} 28. g4 {[%clk 0:02:23]}  e3 {[%clk 0:00:07]} 29. fxe3 {[%clk 0:02:20]}  Re8 {[%clk 0:00:05]} 30. gxf5 {[%clk 0:02:16]}  Bxe3+ {[%clk 0:00:05]} 31. Bxe3 {[%clk 0:02:16]}  Rxe3 {[%clk 0:00:06]} 32. f6 {[%clk 0:02:16]}  Nd6 {[%clk 0:00:05]} 33. Rb6 {[%clk 0:02:16]}  Nf7 {[%clk 0:00:04]} 34. Bd5 {[%clk 0:02:16]}  Ne5 {[%clk 0:00:03]} 35. Rxa6 {[%clk 0:02:07]}  Rxe2 {[%clk 0:00:03]} 36. Ra8+ {[%clk 0:02:01]}  Kh7 {[%clk 0:00:03]} 37. f7 {[%clk 0:02:02]}  Kg7 {[%clk 0:00:02]} 38. f8=Q+ {[%clk 0:02:02]} 1-0


[Site "https://www.chess.com"]

[Event "Titled Tuesday Blitz January 18 2022"]
[White "Ellenbogen, Michael"]
[Black "Vokhidov, Shamsiddin"]
[WhiteFideId "2027143"]
[BlackFideId "14204223"]
[WhiteElo "2059"]
[BlackElo "2611"]
[Result "0-1"]
[Round "05"]
[TimeControl "180+1"]
[Date "2022.01.18"]
[WhiteClock "0:00:04"]
[BlackClock "0:00:28"]

1. c4 {[%clk 0:03:00]}  e5 {[%clk 0:02:58]} 2. g3 {[%clk 0:02:57]}  Nf6 {[%clk 0:02:58]} 3. Bg2 {[%clk 0:02:54]}  c6 {[%clk 0:02:59]} 4. d4 {[%clk 0:02:50]}  e4 {[%clk 0:02:58]} 5. Bg5 {[%clk 0:02:47]}  Qa5+ {[%clk 0:02:54]} 6. Qd2 {[%clk 0:02:43]}  Bb4 {[%clk 0:02:46]} 7. Nc3 {[%clk 0:02:41]}  d5 {[%clk 0:02:45]} 8. Bxf6 {[%clk 0:02:37]}  gxf6 {[%clk 0:02:45]} 9. cxd5 {[%clk 0:02:35]}  cxd5 {[%clk 0:02:44]} 10. e3 {[%clk 0:02:29]}  Bxc3 {[%clk 0:02:29]} 11. Qxc3 {[%clk 0:02:30]}  Qxc3+ {[%clk 0:02:29]} 12. bxc3 {[%clk 0:02:29]}  Nc6 {[%clk 0:02:25]} 13. Ne2 {[%clk 0:02:26]}  Be6 {[%clk 0:02:13]} 14. O-O {[%clk 0:02:26]}  Na5 {[%clk 0:02:11]} 15. f3 {[%clk 0:02:20]}  f5 {[%clk 0:02:09]} 16. Nf4 {[%clk 0:02:19]}  Rc8 {[%clk 0:02:08]} 17. Rab1 {[%clk 0:02:13]}  Rxc3 {[%clk 0:02:06]} 18. Rb5 {[%clk 0:02:07]}  Nc4 {[%clk 0:01:55]} 19. fxe4 {[%clk 0:01:52]}  dxe4 {[%clk 0:01:50]} 20. Rxb7 {[%clk 0:01:47]}  O-O {[%clk 0:01:48]} 21. Rc7 {[%clk 0:01:46]}  Rc8 {[%clk 0:01:41]} 22. Nxe6 {[%clk 0:01:46]}  Rxc7 {[%clk 0:01:41]} 23. Nxc7 {[%clk 0:01:43]}  Nxe3 {[%clk 0:01:41]} 24. Nb5 {[%clk 0:01:41]}  Rd3 {[%clk 0:01:27]} 25. Rc1 {[%clk 0:01:07]}  a6 {[%clk 0:01:25]} 26. Bf1 {[%clk 0:01:01]}  Nxf1 {[%clk 0:01:20]} 27. Kxf1 {[%clk 0:00:43]}  axb5 {[%clk 0:01:19]} 28. Rc5 {[%clk 0:00:39]}  Rf3+ {[%clk 0:00:58]} 29. Kg2 {[%clk 0:00:37]}  b4 {[%clk 0:00:59]} 30. Rb5 {[%clk 0:00:32]}  Ra3 {[%clk 0:00:55]} 31. Rxb4 {[%clk 0:00:32]}  Rxa2+ {[%clk 0:00:56]} 32. Kh3 {[%clk 0:00:32]}  Kg7 {[%clk 0:00:54]} 33. Rb6 {[%clk 0:00:31]}  Rd2 {[%clk 0:00:53]} 34. Rd6 {[%clk 0:00:25]}  f6 {[%clk 0:00:43]} 35. d5 {[%clk 0:00:09]}  Kg6 {[%clk 0:00:40]} 36. Rd7 {[%clk 0:00:07]}  h5 {[%clk 0:00:32]} 37. d6 {[%clk 0:00:06]}  f4 {[%clk 0:00:28]} 38. gxf4 {[%clk 0:00:04]}  Kf5 {[%clk 0:00:28]} 0-1


[Site "https://www.chess.com"]

[Event "Titled Tuesday Blitz January 18 2022"]
[White "Erece, Ece Alkim"]
[Black "Moskalenko, Alexander"]
[WhiteFideId "6346006"]
[BlackFideId "4155351"]
[WhiteElo "1662"]
[BlackElo "2515"]
[Result "0-1"]
[Round "05"]
[TimeControl "180+1"]
[Date "2022.01.18"]
[WhiteClock "0:00:14"]
[BlackClock "0:00:20"]

1. Nf3 {[%clk 0:03:00]}  g6 {[%clk 0:02:03]} 2. g3 {[%clk 0:02:48]}  b6 {[%clk 0:02:01]} 3. Bg2 {[%clk 0:02:49]}  Bb7 {[%clk 0:02:02]} 4. d3 {[%clk 0:02:49]}  Bg7 {[%clk 0:02:03]} 5. e4 {[%clk 0:02:49]}  d6 {[%clk 0:02:01]} 6. Nbd2 {[%clk 0:02:49]}  Nd7 {[%clk 0:02:01]} 7. c3 {[%clk 0:02:49]}  e6 {[%clk 0:02:01]} 8. Qc2 {[%clk 0:02:47]}  Ne7 {[%clk 0:02:02]} 9. O-O {[%clk 0:02:44]}  h6 {[%clk 0:02:00]} 10. d4 {[%clk 0:02:40]}  a6 {[%clk 0:02:00]} 11. Re1 {[%clk 0:02:36]}  c5 {[%clk 0:02:01]} 12. Nb3 {[%clk 0:02:32]}  Qc7 {[%clk 0:01:58]} 13. Qe2 {[%clk 0:02:29]}  b5 {[%clk 0:01:53]} 14. Be3 {[%clk 0:02:26]}  Rc8 {[%clk 0:01:50]} 15. Rac1 {[%clk 0:02:23]}  Bxe4 {[%clk 0:01:49]} 16. dxc5 {[%clk 0:02:13]}  Bxf3 {[%clk 0:01:34]} 17. Qxf3 {[%clk 0:02:08]}  Nxc5 {[%clk 0:01:29]} 18. Nxc5 {[%clk 0:02:01]}  dxc5 {[%clk 0:01:29]} 19. Bf4 {[%clk 0:01:59]}  e5 {[%clk 0:01:29]} 20. Be3 {[%clk 0:01:44]}  O-O {[%clk 0:01:29]} 21. Rcd1 {[%clk 0:01:44]}  Nf5 {[%clk 0:01:23]} 22. Rd5 {[%clk 0:01:28]}  Nxe3 {[%clk 0:01:22]} 23. Qxe3 {[%clk 0:01:27]}  Rfd8 {[%clk 0:01:17]} 24. Red1 {[%clk 0:01:27]}  c4 {[%clk 0:01:12]} 25. Qd2 {[%clk 0:01:23]}  Rxd5 {[%clk 0:01:08]} 26. Qxd5 {[%clk 0:01:23]}  Bf6 {[%clk 0:01:07]} 27. Qb7 {[%clk 0:01:15]}  a5 {[%clk 0:00:35]} 28. Qxb5 {[%clk 0:00:44]}  Rb8 {[%clk 0:00:34]} 29. Qd7 {[%clk 0:00:43]}  Qxd7 {[%clk 0:00:30]} 30. Rxd7 {[%clk 0:00:44]}  Kf8 {[%clk 0:00:30]} 31. Bd5 {[%clk 0:00:44]}  Be7 {[%clk 0:00:30]} 32. Bxc4 {[%clk 0:00:41]}  Rxb2 {[%clk 0:00:30]} 33. Ra7 {[%clk 0:00:35]}  a4 {[%clk 0:00:25]} 34. Rxa4 {[%clk 0:00:24]}  Bc5 {[%clk 0:00:24]} 35. Ra8+ {[%clk 0:00:21]}  Kg7 {[%clk 0:00:24]} 36. Rc8 {[%clk 0:00:18]}  Bxf2+ {[%clk 0:00:23]} 37. Kg2 {[%clk 0:00:17]}  Bb6+ {[%clk 0:00:23]} 38. Kf3 {[%clk 0:00:16]}  f5 {[%clk 0:00:22]} 39. Rc6 {[%clk 0:00:14]}  Rf2# {[%clk 0:00:20]} 0-1


[Site "https://www.chess.com"]